Cogmind - Beta 15 @@@ ROGUE MODE // 2025.08.17 @ 13:42:33 Player: JuustuToug Result: Destroyed by H8-58Q(R) with Subdweller Beam Cannon Performance ------------- Evolutions (0) 0 Regions Visited (2) 400 Robots Destroyed (4) 20 Value Destroyed (89) 89 Prototype IDs (0) 0 Alien Tech Used (0) 0 Bonus (0) 0 TOTAL SCORE: 509 Bonus ------- None Cogmind --------- Core Integrity 0/250 Matter 300/300 Energy 96/100 System Corruption 0% Temperature Cool (15) Movement Core (50) Location -10/Subcaves Parts ------- > --- POWER (1) -------- (None) > --- PROPULSION (2) --- (None) > --- UTILITY (2) ------ (None) > --- WEAPON (2) ------- (None) > --- INVENTORY (5) ---- Light Ion Engine Aluminum Leg Light Assault Rifle Grenade Launcher Peak State ------------ > --- POWER ------------ Light Ion Engine > --- PROPULSION ------- Aluminum Leg Aluminum Leg > --- UTILITY ---------- Small Storage Unit Makeshift Kinetic Plating > --- WEAPON ----------- EM Pulse Gun Heavy Battle Rifle > --- INVENTORY -------- Light Ion Engine Aluminum Leg Aluminum Leg Assault Rifle Light Assault Rifle Grenade Launcher [Rating: 13] Favorites ----------- Power Light Ion Engine Engine Light Ion Engine Propulsion Aluminum Leg Leg Aluminum Leg Utility Small Storage Unit Storage Small Storage Unit Protection Makeshift Kinetic Plating Weapon EM Pulse Gun Energy Gun EM Pulse Gun Ballistic Gun Heavy Battle Rifle Build | -11 -10 -10 ------- Run | Yrd Mat Sub Slots Evolved . | . . . Power . | . . . Propulsion . | . . . Utility . | . . . Weapon . | . . . Parts Attached 9 | 6 . 3 Power 1 | 1 . . Engine 1 | 1 . . Core . | . . . Reactor . | . . . Propulsion 3 | 2 . 1 Treads . | . . . Leg 3 | 2 . 1 Wheel . | . . . Hover . | . . . Flight . | . . . Utility 2 | 1 . 1 Device . | . . . Storage 1 | 1 . . Processor . | . . . Hackware . | . . . Protection 1 | . . 1 Artifact . | . . . Weapon 3 | 2 . 1 Energy Gun 1 | 1 . . Energy Cannon . | . . . Ballistic Gun 2 | 1 . 1 Ballistic Cannon . | . . . Launcher . | . . . Special Weapon . | . . . Impact Weapon . | . . . Slashing Weapon . | . . . Piercing Weapon . | . . . Special Melee Weapon . | . . . Unidentified Prototypes . | . . . Parts Lost 6 | . . 6 Power . | . . . Propulsion 2 | . . 2 Utility 1 | . . 1 Weapon 3 | . . 3 Highest Loss Streak 5 | . . 5 To Critical Strikes . | . . . Average Backups 4 | 1 3 5 Power . | . 1 1 Propulsion 1 | . . 1 Utility . | . . . Weapon 2 | . 1 2 Tool/Special . | . . . Unused Backups 4 | . . 4 Power 1 | . . 1 Propulsion 1 | . . 1 Utility . | . . . Weapon 2 | . . 2 Tool/Special . | . . . Average Slot Usage (%) 91 | . 85 93 Engine 14 | . 14 14 Leg 27 | . 28 27 Storage 14 | . 14 14 Protection 8 | . . 10 Energy Gun 12 | . 14 12 Ballistic Gun 13 | . 14 13 Peak Build Rating 13 | 6 6 13 Average Rating 9 | 4 6 11 On Entrance 4 | . 6 6 Naked Turns 2 | . . 2 Heaviest Build 21 | 12 12 21 Greatest Support 20 | 20 20 20 Greatest Overweight (x) 1 | . . 1 Average Overweight (x) . | . . . Largest Inventory Capacity 8 | 8 8 8 Average Capacity 7 | 7 8 7 Most Carried 7 | 3 5 7 Average Carried 5 | 1 3 5 Final Capacity 8 | 8 8 5 Final Carried 5 | 2 5 4 Class Distribution -------------------- 100% | Mutant Dominant Class ---------------- Mutant | -10/Materials Mutant | -10/Subcaves Resources | -11 -10 -10 ----------- Run | Yrd Mat Sub Matter Collected 355 | 194 105 56 Remotely . | . . . Salvage Created 112 | . 96 16 Parts 7 | . 5 2 Haulers Intercepted . | . . . Recyclers Shooed . | . . . Parts Field Recycled . | . . . Retrieved Matter . | . . . Parts Self-Destructed 6 | . . 6 Prevented . | . . . Kills | -11 -10 -10 ------- Run | Yrd Mat Sub Combat Hostiles Destroyed 2 | . 1 1 Guns 2 | . 1 1 Classes Destroyed 3 | . 2 1 Watcher 2 | . 2 . Swarmer 1 | . . 1 Grunt 1 | . 1 . Best Kill Streak 2 | . 2 1 Combat Bots Only 1 | . 1 1 Max Kills in Single Turn 1 | . 1 1 Gunslinging . | . . . Exploded . | . . . Melee . | . . . Uniques/NPCs Destroyed . | . . . Combat | -11 -10 -10 -------- Run | Yrd Mat Sub Hostile Shots Fired 60 | . 9 51 Missed 23 | . 3 20 Hits 37 | . 6 31 Projectile 37 | . 6 31 AOE 5 | . . 5 Damage Taken 928 | . 84 844 Core 254 | . . 254 Absorbed by Shields . | . . . Ignored by Resistances 32 | . . 32 Core Remaining (%) 100 | 100 . . Volleys Fired 26 | . 15 11 Largest 2 | . 2 2 Hottest 73 | . 60 73 Shots Fired 49 | . 30 19 Gun 49 | . 30 19 Cannon . | . . . Launcher . | . . . Special . | . . . Kinetic 26 | . 15 11 Thermal . | . . . Explosive . | . . . Electromagnetic 23 | . 15 8 Robot Hit Streak 8 | . 8 2 Robot Miss Streak 4 | . 3 4 Penetration Max . | . . . Secondary Targets 1 | . 1 . Max Gunslinging Chain 1 | . 1 . Shots Hit Robots 19 | . 16 3 Core Hits 6 | . 5 1 Critical Kills . | . . . Critical Parts Destroyed . | . . . Critical Strikes . | . . . Melee Attacks . | . . . Impact . | . . . Slashing . | . . . Piercing . | . . . Sneak Attacks . | . . . Combat Hostiles . | . . . Follow-up Attacks . | . . . Damage Inflicted 256 | . 231 25 Guns 256 | . 231 25 Cannons . | . . . Explosions . | . . . Melee . | . . . Ramming . | . . . Kinetic 99 | . 84 15 Thermal . | . . . Explosive . | . . . Electromagnetic 157 | . 147 10 Impact . | . . . Slashing . | . . . Piercing . | . . . Highest Corruption . | . . . Average Corruption . | . . . Corruption Purged . | . . . Corruption Blocked . | . . . Overload Shots . | . . . Overflow Damage . | . . . Projectiles . | . . . Explosions . | . . . Melee . | . . . Knockbacks . | . . . Impact . | . . . Kinetic . | . . . Secondary . | . . . Self-Inflicted Damage . | . . . Shots . | . . . Rammed . | . . . Targets Rammed . | . . . Kicked . | . . . Crushed . | . . . Highest Temperature 36 | . 36 . Average Temperature 26 | . 26 . Received Heat Transfer 201 | . 48 153 Siege Activations . | . . . Martial Activations . | . . . Shielding Activations . | . . . Robots Disrupted . | . . . Combat Hostiles . | . . . Robots Corrupted . | . . . Combat Hostiles . | . . . Parts Fried 2 | . 2 . Impact Corruptions . | . . . Robots Melted . | . . . Combat Hostiles . | . . . Parts Melted . | . . . Heat Transferred . | . . . Parts Sabotaged . | . . . Parts Stolen . | . . . Parts Stripped . | . . . Power Chain Reactions . | . . . Alert | -11 -10 -10 ------- Run | Yrd Mat Sub Maximum Alert Level . | . . . Low Security (%) 100 | 100 100 . Level 1 . | . . . Level 2 . | . . . Level 3 . | . . . Level 4 . | . . . Level 5 . | . . . High Security . | . . . Max Security . | . . . Peak Influence 27 | . 27 . Initial . | . . . Average 4 | . 5 . Influence Increases 94 | . 44 50 Destroy 0b10 Robot/C 40 | . 20 20 Destroy 0b10 Robot/NC 10 | . 10 . Destroy Leader 14 | . 14 . Lose Combat Pursuer 30 | . . 30 Influence Decreases 94 | . 37 57 Entered New Map 4 | . . 4 Time Decay 78 | . 37 41 Lost Part 12 | . . 12 Squads Dispatched 2 | . 2 . Investigation 1 | . 1 . Extermination . | . . . Reinforcement 1 | . 1 . Assault . | . . . Garrison . | . . . Intercept . | . . . Searches Triggered . | . . . Construction Impeded . | . . . Haulers Reinforced . | . . . Active Scanning Responses . | . . . Cargo Convoy Interrupts . | . . . Stealth | -11 -10 -10 --------- Run | Yrd Mat Sub Distress Signals 3 | . 3 . Communications Jammed . | . . . Distress Signals . | . . . Times Spotted 15 | . 8 7 Peak Tracking Total 4 | . 4 3 Tactical Retreats 1 | . . 1 Traps | -11 -10 -10 ------- Run | Yrd Mat Sub Traps Triggered 3 | . 1 2 Indirectly . | . . . Trap Hack Attempts . | . . . Triggered . | . . . Disarmed . | . . . Reprogrammed . | . . . Reused . | . . . Traps Extracted . | . . . Installed . | . . . Triggered . | . . . Machines | -11 -10 -10 ---------- Run | Yrd Mat Sub Machines Disabled . | . . . Max in Single Turn . | . . . Machines Repaired . | . . . Machines Dismantled . | . . . Machines Sabotaged . | . . . Overloaded Fab Kills . | . . . Hacking | -11 -10 -10 --------- Run | Yrd Mat Sub Machines Accessed 2 | . 1 1 Terminals 1 | . 1 . Fabricators . | . . . Repair Stations . | . . . Recycling Units . | . . . Scanalyzers . | . . . Garrison Access . | . . . Total Hacks 6 | . 2 4 Successful 5 | . 1 4 Failed 1 | . 1 . Catastrophic . | . . . Database Lockouts . | . . . Manual 2 | . 2 . Terminals 2 | . 2 . Fabricators . | . . . Repair Stations . | . . . Recycling Units . | . . . Scanalyzers . | . . . Garrison Access . | . . . Terminal Hacks 4 | . . 4 Record 4 | . . 4 Fabricator Hacks . | . . . Repair Station Hacks . | . . . Recycling Unit Hacks . | . . . Scanalyzer . | . . . Garrison Access Hacks . | . . . Unauthorized Hacks 1 | . 1 . Terminals 1 | . 1 . Botnet 1 | . 1 . Fabricators . | . . . Repair Stations . | . . . Recycling Units . | . . . Scanalyzers . | . . . Garrison Access . | . . . Data Cores Recovered . | . . . Used . | . . . Hacking Detections 1 | . 1 . Full Trace Events . | . . . Feedback Events . | . . . Feedback Blocked . | . . . Robot Schematics Acquired . | . . . Robots Built . | . . . Authchips . | . . . Time . | . . . Total Robot Build Rating . | . . . Part Schematics Acquired . | . . . Parts Built . | . . . Authchips . | . . . Time . | . . . Total Part Build Rating . | . . . Parts Repaired . | . . . Time . | . . . Parts Recycled . | . . . Recycled Matter . | . . . Retrieved Matter . | . . . Retrieved Components . | . . . Parts Scanalyzed . | . . . Part Schematics Acquired . | . . . Parts Damaged . | . . . Bothacking | -11 -10 -10 ------------ Run | Yrd Mat Sub Used RIF Installer . | . . . Robots Hacked . | . . . Non-combat . | . . . Combat . | . . . Robot Hacks Applied . | . . . Relay Couplers Released . | . . . Fabnet Peak Effective % . | . . . Robots Rewired . | . . . Allies Hacked . | . . . Hacks Repelled . | . . . Allies | -11 -10 -10 -------- Run | Yrd Mat Sub Total Allies . | . . . Largest Group . | . . . Highest-Rated Group . | . . . Highest-Rated Ally . | . . . Total Orders . | . . . Ally Attacks . | . . . Total Damage . | . . . Kills . | . . . Allies Corrupted . | . . . Allies Melted . | . . . Intel | -11 -10 -10 ------- Run | Yrd Mat Sub Active Infowar (turns) . | . . . Robot Analysis Total . | . . . Derelict Logs Recovered . | . . . Drone Launches . | . . . Drone Recoveries . | . . . Exploration | -11 -10 -10 ------------- Run | Yrd Mat Sub Turns Passed 985 | 66 173 746 Spaces Moved 528 | 45 105 378 Core 10 | 6 . 4 Treads . | . . . Legs 518 | 39 105 374 Wheels . | . . . Hover . | . . . Flight . | . . . Fastest Speed 50 | 50 120 50 Average Speed 152 | 110 120 166 Slowest Speed 190 | 120 120 190 Overloaded Moves . | . . . Propulsion Burnouts . | . . . Robots Hopped . | . . . Potential Cave-ins . | . . . Cave-ins Triggered . | . . . Exploration Rate (%) 13 | 3 16 20 Regions Visited 2 Branch Regions 1 Pre-discovered Areas 1 | . . 1 Known Exits Taken . | . . . Unknown Exits Taken 2 | 1 1 . Scrap Searched 1 | . . 1 Spaces Dug 1 | . . 1 Terrain Destroyed 1 | . . 1 Melee . | . . . Projectile 1 | . . 1 AOE . | . . . Terrain Rammed . | . . . Walls Destroyed . | . . . Machines Disabled . | . . . Actions | -11 -10 -10 --------- Run | Yrd Mat Sub Total 658 | 61 122 475 Wait 80 | 3 . 77 Move 526 | 44 104 378 Hop . | . . . Pick Up 13 | 8 3 2 Fast Attach . | . . . Attach 9 | 6 . 3 Detach . | . . . Swap 1 | . . 1 Drop 3 | . . 3 Fire 26 | . 15 11 Melee . | . . . Ram . | . . . Kick . | . . . Crush . | . . . Escape Stasis . | . . . Rewire . | . . . Trap . | . . . Miscellaneous . | . . . Route ------- -11/Scrapyard -10/Materials -10/Subcaves (discovered 2 exits: [*Mat] / Rec) History --------- Turn | Location | Event 4 | -11/Scrapyard | Discovered new exit (range 15) 67 | -11/Scrapyard | Entered Materials 184 | -10/Materials | Discovered new exit (range 7) 240 | -10/Materials | Entered Subcaves 241 | -10/Subcaves | Approached by a straggling Scientist 311 | -10/Subcaves | A swath of the cavern ceiling suddenly collapsed 315 | -10/Subcaves | Build established: Mutant 589 | -10/Subcaves | Discovered new exit (range 7) 739 | -10/Subcaves | Visited Clippyterm 745 | -10/Subcaves | Identified exit to Recycling 745 | -10/Subcaves | Learned Factory stockpile data 938 | -10/Subcaves | Core integrity fell below 50% 964 | -10/Subcaves | Learned location of Zion (-6) 964 | -10/Subcaves | Met a Zionite searching for "candidates" 968 | -10/Subcaves | Lost 5 parts (1n1u3w) 985 | -10/Subcaves | Core integrity fell below 20% 986 | -10/Subcaves | Destroyed by H8-58Q(R) with Subdweller Beam Cannon Last Messages --------------- 00937_ Assault Rifle destroyed. 00938_ Beam Rifle fries itself beyond repair. 00942_ Lgt. Treads fries itself beyond repair. 00947_ CG-7JQ(z): "She is not going to be happy we haven't found any suitable candidates yet." 00947_ Corrupted Hvy. Assault Rifle fries itself beyond repair. 00964_ CG-7JQ(z): "Hey you! It's really dangerous down here, I feel that you could die at any moment. For your health and safety might I suggest a trip to Zion?" World map updated: -6/Zion. 00975_ I4-L0U(z) destroyed. 00975_ CG-7JQ(z) destroyed. 00980_ Aluminum Leg destroyed. 00983_ Dropped Aluminum Leg. 00984_ Subatomizers dissect the Mak. Microdissipator Network. 00984_ Dropped Lgt. Ion Engine. 00984_ Dropped Sml. Storage Unit. Map ----- +----------------------------------------------------+ | < ""#????????????????????????????## | | ?#### #????????????????????????????# ##### | | ?????##???????????????????????????## #???? | | ?????????????????????????????????## #????? | | ????????????????????????????????## % ##????? | | ????????????????????????????????# ##????? | | ????????????????????????????????# #????? | | ????????????????????????????????# #???????? | | ????????????????????????????????### #???????? | | ??????????????????????????????????## % ##???????? | | ???????????????????????????????????## #????? "?? | | ????????????????????????????????????# #????""??? | | ??????????????????????????????????### ##?? ? | | ??????????????????????????????????# ##"" "? | | ??????????????????????????????????# """#?? | | ??????????????????????????????????# ""#?? | | ??????????????????????????????????# % ### "#?? | | ?????????????????????????????????# # ##?##"""#? | | ?????????????????###?????????????##### % #???" #? | | ???????????????### ####?????????????# #??#" #? | | ???????????????? ??????????#### ##?? """#? | | ?????????????????? ?????????## ## #### #? | | ??????????????????? #?????????# "# ## | | ???????????????????## ########?## # # | | ???????????????????# ## # # ### # | | ???????????????????# @ #? | | ???????????????????# *R # ## #? | | ???????????????????## =R ####### #? | | ???????????????????# ! ##????#### ####? | | ???????????????????# #??????## #??? | | ???????????????????## ##????## #??? | | ????????????????????#% ###??# " ##??? | | ??????????????????###%! #??# #" ##???? | | ??????????????????# ## #??###"" " ##????? | | ??????????????????# ###?####????## " "##?????? | | ??????????????????# #????????????### ##??????? | | ??????????????????# #??????????????#####???????? | | ??????????????????#####??????????????????????????? | | ?????????????????????????????????????????????????? | | ?????????????????????????????????????????????????? | | ?????????????????????????????????????????????????? | | ?????????????????????????????????????????????????? | | ?????????????????????????????????????????????????? | | ?????????????????????????????????????????????????? | | ?????????????????????????????????????????????????? | | ?????????????????????????????????????????????????? | | ?????????????????????????????????????????????????? | | ?????????????????????????????????????????????????? | | ?????????????????????????????????????????>???????? | | ?????????????????????????????????????????????????? | +----------------------------------------------------+ Best States ------------- Heat Dissipation 25 Energy Generation 10 Energy Capacity 125 Matter Stores 300 Matter Capacity 300 Sight Range 16 Terrain Scan Density 10 Armor Coverage 100 Resistance: KI 10 Evasion (%) 55 Item Schematics ----------------- None Robot Schematics ------------------ None Fabricated ------------ Nothing Repaired ---------- Nothing Alien Tech Used ----------------- None Achievements -------------- None Challenges ------------ None Game ------ Seed SeismicEncryptedDissipator Manual? 0 Play Time 00:09:33 Cumulative 54.7 hours Start 2025.08.17 @ 13:36:34 End 2025.08.17 @ 13:42:33 Sessions 1 Manual Loads 0 Difficulty Rogue Special Mode None Game No. 41 Rogue 41 Adventurer 0 Explorer 0 Win Type - Total 1 Types 1/0/0/0/0/0/0/0/0/0 Lore% 51 Gallery% 42 Achievement% 36 Wizard Run 0 Options --------- Layout 1 ASCII 0 Keyboard 0 Movement Mouse Keybinds 0 Fullscreen 1 Font 24/Smallcaps Map View 50x35 Zoom Use 0% Tactical HUD 1 Map Filters NONE Filters NONE Steam 1 RUN: 747674e8-eed2-4fb4-8d19-57d44fe214a9